bitfinex/quotes_ETHUSD_20220201
["timestamp","ask_amount","ask_price","bid_price","bid_amount"]
[1643702605507,0.39544938,2741.5,2741.0,0.10539621]
[1643702605708,0.39544938,2741.5,2740.8,1.82414]
[1643702605956,0.39544938,2741.5,2741.0,0.91206]
[1643702606352,1.41720437,2741.4,2741.0,0.91206]
[1643702606555,0.39544938,2741.5,2741.0,0.91206]
[1643702607058,0.39544938,2741.5,2741.0,1.058242]
[1643702607258,1.41769679,2741.4,2741.0,0.91206]
[1643702611105,1.41769679,2741.4,2741.0,1.058244]
[1643702611309,1.41952876,2741.3,2741.0,1.058244]
[1643702611505,0.39544938,2741.5,2741.0,1.058244]
[1643702611704,1.41963115,2741.4,2741.0,1.058244]
[1643702612307,1.41963115,2741.4,2741.1,0.10546343]
[1643702616056,1.41963115,2741.4,2741.0,1.058244]
[1643702616255,1.41963115,2741.4,2741.1,0.10595944]
[1643702616455,1.41963115,2741.4,2741.0,1.058244]
[1643702616655,1.41963115,2741.4,2741.1,0.10596642]
[1643702616854,1.41963115,2741.4,2741.2,0.10596487]
[1643702617107,1.41963115,2741.4,2741.0,0.71476401]
[1643702617307,1.41963115,2741.4,2741.1,0.10965701]
[1643702620117,1.41963115,2741.4,2741.2,0.10965701]
[1643702620317,1.41963115,2741.4,2741.3,0.10965701]
[1643702620624,1.41963115,2741.4,2740.9,0.10965701]
[1643702621071,1.41963115,2741.4,2741.0,1.02173701]
[1643702621274,1.41963115,2741.4,2741.1,0.10965701]
[1643702623484,3.3529,2741.4,2741.1,0.10965701]
[1643702623681,2.10902477,2741.3,2740.6,0.10965701]
[1643702623884,4.19511748,2741.2,2740.7,0.10947391]
[1643702624090,1.41963115,2741.1,2740.8,0.10947391]
[1643702624283,1.95589383,2741.0,2740.9,0.10947391]
[1643702624485,3.71416535,2741.0,2740.1,0.79978108]
[1643702624712,0.41394417,2740.4,2740.1,0.79978108]
[1643702624909,1.95500584,2740.8,2740.1,0.79978108]
[1643702625131,1.42292901,2740.7,2740.1,0.99030717]
[1643702625310,1.42292901,2740.6,2740.2,0.10947391]
[1643702625511,2.04199683,2741.0,2740.2,0.79978108]
[1643702625711,0.68939362,2741.3,2740.2,0.79978108]
[1643702625712,1.42293079,2740.9,2740.2,0.79978108]
[1643702625919,0.39218469,2740.7,2740.3,1.82459]
[1643702626113,0.39218469,2740.7,2740.4,0.10947391]
[1643702627614,1.95528455,2741.3,2740.4,0.10947391]
[1643702627824,6.84099362,2741.4,2740.5,1.60253717]
[1643702627825,1.42163474,2741.2,2740.5,1.60253717]
[1643702628017,1.42163474,2741.1,2740.6,0.79978108]
[1643702628214,1.42163474,2741.1,2740.7,0.3]
[1643702628461,1.42163474,2741.0,2740.8,0.10947391]
[1643702628656,0.43003222,2741.0,2740.8,0.10947391]
[1643702629961,0.43003222,2741.0,2740.8,1.93365391]
[1643702630160,0.43003222,2741.0,2740.9,0.10947391]
[1643702630404,1.85196796,2741.0,2740.9,0.10947391]
[1643702631162,1.85196796,2741.0,2740.9,0.40947391]
[1643702631362,1.85196796,2741.0,2740.9,0.10947391]
[1643702632528,1.42193574,2741.0,2740.9,0.10947391]
[1643702632929,1.42193574,2741.3,2740.9,0.10947391]
[1643702633229,1.42193574,2741.2,2740.9,0.10947391]
[1643702633437,1.42193574,2741.1,2740.9,0.10947391]
[1643702633639,1.42193574,2741.0,2740.9,0.10947391]
[1643702634135,1.42193574,2741.1,2740.9,1.32155391]
[1643702634336,1.42193574,2741.1,2741.0,0.10947391]
[1643702637767,1.42193574,2741.1,2741.0,0.10759895]
[1643702637970,1.42193574,2741.1,2740.9,0.91208]
[1643702638168,1.42193574,2741.1,2741.0,0.10759525]
[1643702638367,1.42193574,2741.1,2741.0,0.10758837]
[1643702638568,1.42193574,2741.1,2740.9,0.91208]
[1643702638772,1.42193574,2741.1,2741.0,0.10762557]
[1643702638969,1.42193574,2741.1,2740.9,0.91208]
[1643702639166,1.42193574,2741.1,2741.0,0.10768305]
[1643702639367,1.42193574,2741.1,2740.9,0.91208]
[1643702639610,1.42106231,2741.1,2741.0,0.10770655]
[1643702639812,1.42106231,2741.1,2740.9,0.71176006]
[1643702640416,1.42106231,2741.1,2740.8,1.82418]
[1643702640417,1.96305807,2741.0,2740.8,1.82418]
[1643702640816,1.06751897,2741.2,2740.8,1.82418]
[1643702640817,1.06751897,2741.2,2740.8,1.970383]
[1643702641015,1.06751897,2741.2,2740.8,1.82418]
[1643702641418,0.37812535,2741.2,2740.8,1.82418]
[1643702642915,0.66865806,2740.9,2740.8,1.82418]
[1643702643117,0.37812535,2741.2,2740.8,1.82418]
[1643702643360,0.37812535,2741.2,2740.8,2.7363946]
[1643702644170,3.01291013,2741.2,2740.8,2.7363946]
[1643702644372,1.06751897,2741.2,2740.8,2.7363946]
[1643702644570,1.92115659,2741.2,2740.8,2.7363946]
[1643702644770,1.92115659,2741.2,2740.9,0.3]
[1643702644972,1.23176297,2741.2,2741.0,0.91223]
[1643702645470,0.37812535,2741.2,2741.0,0.91223]
[1643702646673,0.75370986,2741.1,2741.0,0.91223]
[1643702647713,0.75370986,2741.1,2741.0,1.21223]
[1643702647913,0.75370986,2741.1,2741.0,7.40748458]
[1643702648516,0.37812535,2741.2,2741.0,7.40748458]
[1643702648716,0.37812535,2741.2,2741.1,6.19397245]
[1643702648920,0.37812535,2741.2,2741.1,6.49397245]
[1643702649515,0.37812535,2741.2,2741.1,0.3]
[1643702649715,0.37812535,2741.2,2741.0,1.21223]
[1643702652664,0.37812535,2741.2,2741.0,1.358428]
[1643702652866,0.37812535,2741.2,2741.0,1.21223]
[1643702656523,0.37812535,2741.2,2741.0,1.358428]
[1643702656924,0.37812535,2741.2,2741.0,1.21223]
[1643702657725,0.37812535,2741.2,2741.1,0.3]
[1643702659071,0.37812535,2741.2,2741.0,0.91223]
[1643702659774,1.42292183,2741.1,2741.0,0.91223]
[1643702660072,1.42292183,2741.1,2741.0,1.02305356]
[1643702660273,1.42292183,2741.1,2741.0,1.02305392]
[1643702660572,1.42292183,2741.1,2741.0,1.658431]
[1643702660774,1.42292183,2741.1,2741.0,1.32305064]
[1643702660973,1.42292183,2741.1,2741.0,1.21223]
[1643702661171,1.42292183,2741.1,2741.0,1.32304913]
[1643702661374,1.42292183,2741.1,2741.0,1.21223]
[1643702661576,1.42157257,2741.1,2741.0,1.21223]
[1643702661778,0.59972793,2741.1,2740.8,2.7363946]
[1643702663223,0.59972793,2741.1,2740.9,0.3]
[1643702663824,0.59972793,2741.1,2741.0,0.91223]
[1643702666270,2.51357181,2741.1,2741.0,0.91223]
[1643702666472,3.50357181,2741.1,2740.7,1.8243706]
[1643702666674,0.68939362,2741.0,2740.7,1.8243706]
[1643702666872,1.68939362,2741.0,2740.5,1.82469]
[1643702667074,0.68939362,2740.9,2740.4,1.8247208]
[1643702667277,0.93062657,2740.8,2740.4,1.8247208]
[1643702667472,0.68939362,2740.6,2739.8,0.69030717]
[1643702667673,0.68939362,2740.6,2740.0,1.8250034]
[1643702667871,0.68939362,2740.5,2740.0,1.8250034]
[1643702668474,0.3375708,2740.5,2740.0,1.8250034]
[1643702668672,0.88645066,2740.1,2740.0,1.8250034]
[1643702672633,0.88645066,2740.1,2739.9,1.971369]
[1643702673574,1.22528164,2740.1,2739.9,1.82513]
[1643702673773,1.22528164,2740.1,2739.9,2.7377437]
[1643702674577,0.33883098,2740.1,2739.9,2.7377437]
[1643702674781,0.437,2740.3,2739.9,3.0377437]
[1643702674978,2.08285714,2740.7,2740.0,0.3]
[1643702675180,3.03048763,2741.0,2740.0,0.3]
[1643702675380,4.03048763,2741.0,2740.0,0.3]
[1643702675577,0.74689734,2740.6,2739.9,2.42513]
[1643702675778,0.74689734,2740.6,2740.0,0.91247]
[1643702675978,0.42847763,2740.3,2740.1,2.1249125]
[1643702676179,0.42847763,2740.3,2740.1,2.4249125]
[1643702680479,2.03785488,2740.9,2740.1,2.4249125]
[1643702680645,4.47849362,2741.1,2740.3,0.9124]
[1643702680895,0.68939362,2741.2,2740.3,0.9124]
[1643702681098,0.68939362,2741.2,2740.2,0.3]
[1643702681297,1.67939362,2741.1,2740.2,0.3]
[1643702681699,1.85821801,2741.0,2740.5,1.8247905]
[1643702681898,1.41451556,2740.9,2740.6,0.11471555]
[1643702682097,1.41451556,2740.9,2740.5,1.6125202]
[1643702682300,2.41451556,2740.9,2740.6,0.11868611]
[1643702682505,1.41451556,2740.8,2740.6,0.11868611]
[1643702682905,2.13210433,2740.7,2740.6,0.11868611]
[1643702683201,1.41451556,2740.7,2740.6,0.41868611]
[1643702683402,0.44370245,2741.0,2740.6,0.11868611]
[1643702683403,1.41451556,2740.9,2740.6,0.11868611]
[1643702683802,1.41451556,2740.9,2740.5,0.3]
[1643702684001,1.41451556,2740.9,2740.6,0.11474002]
[1643702684202,0.92377705,2740.8,2740.6,0.11474002]
[1643702684403,1.41451556,2740.7,2740.5,0.3]
[1643702685220,2.41451556,2740.7,2740.5,0.3]
[1643702685423,1.41451556,2740.6,2740.5,0.3]
[1643702685620,1.41451556,2740.6,2740.5,0.41478168]
[1643702686823,1.41451556,2740.6,2740.5,0.11478168]
[1643702687022,1.41451556,2740.7,2740.5,0.11478168]
[1643702689870,1.41451556,2740.7,2740.5,0.41478168]
[1643702690077,1.41451556,2740.7,2740.6,0.11478168]
[1643702691076,1.41451556,2740.9,2740.6,0.11478168]
[1643702691280,3.99369362,2741.7,2740.6,0.11478168]
[1643702691479,1.63641044,2741.8,2740.6,0.11478168]
[1643702691480,1.41167207,2741.6,2740.6,0.29628267]
[1643702691777,1.41167207,2741.5,2741.1,0.77551555]
[1643702691976,2.10106569,2742.1,2741.2,4.11578579]
[1643702692246,0.91285127,2742.2,2741.5,1.2117986]
[1643702692247,1.41167207,2742.0,2741.5,1.2117986]
[1643702692434,1.41167207,2741.9,2741.6,2.37637097]
[1643702692634,0.68939362,2742.7,2741.7,0.11478168]
[1643702692836,1.41160141,2742.6,2741.7,0.13848097]
[1643702693034,0.68939362,2742.8,2741.9,1.8233]
[1643702693293,1.41160141,2742.7,2742.0,4.111985]
[1643702693434,2.46478668,2743.4,2742.2,2.61243731]
[1643702693435,3.1541803,2743.4,2742.2,2.61243731]
[1643702693637,2.46478668,2743.4,2742.3,3.22794907]
[1643702693836,0.68939362,2743.9,2742.4,0.437]
[1643702694038,0.68939362,2744.0,2742.6,21.39]
[1643702694348,7.05277409,2744.6,2743.2,1.0]
[1643702694349,1.35797409,2744.6,2743.2,1.0]
[1643702694639,0.0150384,2744.7,2744.6,0.71263057]
[1643702694937,0.685898,2745.3,2744.6,1.19413156]
[1643702695134,1.01783985,2745.5,2744.6,1.19413156]
[1643702695135,0.1,2745.5,2744.7,2.0]
[1643702695396,0.1,2745.8,2744.8,2.00288099]
[1643702695538,0.1,2745.8,2745.5,0.84358158]
[1643702695741,0.1,2745.8,2745.5,0.86296012]
[1643702695991,0.1,2745.8,2745.5,0.31937854]
[1643702696434,0.1,2745.8,2745.5,1.8211725]
[1643702696600,0.685898,2746.7,2745.5,1.8211725]
[1643702696601,0.35137752,2746.7,2745.5,0.91058]
[1643702696796,0.685898,2746.8,2745.6,2.0]
[1643702696996,0.685898,2746.9,2745.9,0.90097823]
[1643702697197,1.40124925,2747.0,2745.6,2.02251334]
[1643702697400,0.71535125,2747.0,2745.5,0.3]
[1643702697600,0.71535125,2747.0,2745.8,0.91042]
[1643702697801,0.71535125,2747.0,2745.9,0.3]
[1643702697802,0.34690441,2746.0,2745.9,0.3]
[1643702698203,1.04181447,2746.0,2745.2,0.13819997]
[1643702698599,1.04181447,2746.0,2744.7,2.91089]
[1643702698600,1.59200887,2746.0,2744.7,2.91089]
[1643702698799,0.40890338,2745.5,2744.8,0.391316]
[1643702698999,1.13191006,2746.0,2744.8,1.3021041]
[1643702699203,0.437,2746.0,2744.9,2.82864928]
[1643702699404,0.437,2746.0,2744.8,0.391316]
[1643702699629,0.437,2746.0,2745.1,0.91073]
[1643702700035,0.437,2746.0,2745.1,1.21073]
[1643702700231,0.437,2746.0,2745.1,0.6]
[1643702700430,0.7543118,2745.5,2744.7,2.0]
[1643702700641,0.34610479,2745.2,2744.5,0.58293278]
[1643702701033,0.7543118,2745.5,2744.6,1.82169]
[1643702701830,0.437,2745.7,2744.6,1.82169]
[1643702702031,0.437,2745.7,2744.7,0.9108168]
[1643702702032,0.38476583,2745.3,2744.7,0.9108168]
[1643702702332,0.38476583,2745.3,2744.7,0.6]
[1643702702933,0.437,2745.7,2744.7,0.61866831]
[1643702703140,0.437,2745.7,2744.9,0.91081]
[1643702703382,1.27669273,2745.7,2744.9,1.21081]
[1643702703585,1.27669273,2745.7,2744.9,0.3]
[1643702703788,1.27669273,2745.7,2744.8,0.3]
[1643702703985,0.44342992,2745.5,2744.7,0.6]
[1643702704788,0.437,2745.7,2744.9,0.91084]
[1643702704989,0.437,2745.7,2745.0,2.80996059]
[1643702705193,0.437,2746.1,2745.2,1.82133]
[1643702705389,0.437,2746.1,2745.2,2.12133]
[1643702705591,0.01292256,2746.3,2745.3,2.07801131]
[1643702705798,0.437,2746.4,2745.5,0.39528688]
[1643702705998,0.44139559,2747.2,2746.3,0.33101718]
[1643702705999,0.437,2747.2,2746.3,0.33101718]
[1643702706190,0.437,2747.2,2746.3,0.63101718]
[1643702706588,1.97585394,2747.3,2746.3,0.3]
[1643702706589,2.15502555,2747.3,2746.3,0.3]
[1643702706794,2.15502555,2747.3,2745.9,0.70959573]
[1643702706795,2.06672908,2747.3,2745.9,0.70959573]
[1643702707147,2.06672908,2747.3,2745.9,0.3]
[1643702707543,0.437,2747.2,2745.9,0.3]
[1643702707746,0.32170683,2746.3,2745.9,0.3]
[1643702707944,0.90307654,2746.5,2745.9,0.3]
[1643702708148,0.90307654,2746.5,2745.6,0.38004713]
[1643702708149,1.97824382,2746.4,2745.6,0.3]
[1643702708358,1.97449584,2746.4,2745.5,0.25]
[1643702708548,1.97449584,2746.4,2745.4,0.91057]
[1643702709154,1.97449584,2746.4,2744.7,0.25]
[1643702709155,0.39292959,2745.4,2744.9,0.91071]
[1643702709355,3.41149584,2746.4,2744.9,0.91071]
[1643702709356,0.437,2746.0,2744.9,0.91071]
[1643702709676,2.08357408,2745.9,2744.9,0.91071]
[1643702710251,2.08357408,2745.9,2744.9,1.51071]
[1643702710652,0.39824071,2745.7,2744.9,1.51071]
[1643702711292,0.89359029,2745.5,2744.9,0.6]
[1643702711487,2.43268627,2745.4,2744.5,0.13819997]
[1643702711688,0.437,2745.4,2744.5,0.13819997]
[1643702712288,0.3449447,2745.0,2744.5,0.13819997]
[1643702712488,0.3449447,2745.0,2744.5,1.04908997]
[1643702712888,2.42764117,2745.4,2744.5,1.04908997]
[1643702713091,0.437,2745.4,2744.5,1.04908997]
[1643702713794,0.437,2745.4,2744.6,0.3]
[1643702713993,0.82742981,2745.4,2744.7,0.01988347]
[1643702714192,0.82742981,2745.4,2744.6,0.31974161]
[1643702714390,0.82742981,2745.4,2744.7,0.3]
[1643702714632,0.437,2745.4,2744.8,0.8196743]
[1643702714831,0.437,2745.4,2744.9,0.3]
[1643702715433,0.437,2745.4,2744.6,0.3]
[1643702715833,0.38221861,2745.2,2744.6,0.3]
[1643702717033,1.32910202,2745.7,2744.6,0.99045032]
[1643702717034,0.437,2745.7,2744.6,0.99045032]
[1643702717337,0.19434752,2746.0,2744.9,0.33886139]
[1643702717537,0.19434752,2746.0,2745.0,2.23469387]
[1643702717538,0.437,2746.0,2745.0,2.23469387]
[1643702717733,0.437,2746.0,2745.0,0.3]
[1643702718134,0.40401287,2745.5,2744.9,0.31242357]
[1643702718792,0.40401287,2745.5,2744.9,0.3]
[1643702719092,0.40401287,2745.5,2744.8,0.3]
[1643702720396,0.42574238,2745.0,2744.8,0.3]
[1643702720795,0.42574238,2745.0,2744.6,0.3]
[1643702722445,0.437,2745.5,2744.7,0.94643841]
[1643702722846,0.437,2745.5,2744.8,0.3]
[1643702723449,0.31884194,2745.0,2744.8,0.3]
[1643702724353,0.437,2745.7,2744.8,0.32366237]
[1643702724649,0.437,2745.7,2744.8,0.3]
[1643702725249,0.8326293,2745.2,2744.8,0.3]
[1643702725450,0.8326293,2745.2,2744.6,0.3]
[1643702726287,0.4005039,2745.1,2744.6,0.3]
[1643702728089,2.36722216,2745.1,2744.6,0.3]
[1643702728293,1.95705521,2745.0,2744.6,0.3]
[1643702728494,0.437,2744.9,2744.3,0.25]
[1643702728693,0.437,2744.9,2744.0,0.9111]
[1643702729294,0.71865263,2744.7,2744.0,0.9111]
[1643702729495,1.15565263,2744.7,2744.0,0.9111]
[1643702729743,0.437,2744.7,2744.0,0.9111]
[1643702730043,0.32586074,2744.2,2744.0,0.9111]
[1643702730244,0.32586074,2744.2,2744.1,0.6]
[1643702730446,0.32586074,2744.2,2743.7,0.91117]
[1643702731648,0.32586074,2744.2,2743.7,1.21117]
[1643702731844,0.32586074,2744.2,2743.8,0.3]
[1643702734488,0.12923601,2744.2,2743.8,0.3]
[1643702735290,0.437,2744.7,2743.8,1.21109]
[1643702735496,0.437,2745.1,2743.9,2.30409878]
[1643702735692,11.4272,2745.5,2744.0,0.18277524]
[1643702735891,1.33440202,2745.4,2744.0,0.18277524]
[1643702736293,0.34066083,2744.8,2744.2,0.93971443]
[1643702736500,0.34066083,2744.8,2744.3,0.18277524]
[1643702736691,0.34066083,2744.8,2744.3,0.36427623]
[1643702736895,0.34066083,2744.8,2744.4,0.18277524]
[1643702737549,0.34066083,2744.8,2744.5,0.18277524]
[1643702737837,1.34420704,2744.7,2744.2,0.3]
[1643702738035,1.01959461,2744.8,2744.2,0.3]
[1643702738036,0.33004779,2744.3,2744.2,0.3]
[1643702738244,0.33004779,2744.3,2744.2,0.18208117]
[1643702738439,0.01281156,2745.3,2744.2,0.18208117]
[1643702738440,0.69870956,2745.3,2744.2,0.18208117]
[1643702738636,1.34799084,2745.2,2744.3,0.18208117]
[1643702738835,1.34799084,2745.2,2744.4,0.18208117]
[1643702739040,1.34799084,2745.2,2744.5,0.18208117]
[1643702739240,1.34799084,2745.2,2744.6,0.18208117]
[1643702739441,1.69400855,2745.1,2744.7,0.18208117]
[1643702739681,1.34799084,2745.0,2744.8,0.18208117]
[1643702739837,1.34799084,2745.0,2744.9,0.18208117]
[1643702740036,3.34799084,2745.0,2744.4,0.18302331]
[1643702740241,0.69865286,2744.8,2743.8,1.1436]
[1643702740444,0.69865286,2744.8,2743.9,0.17991383]
[1643702740445,2.47088884,2744.7,2743.9,0.17991383]
[1643702740639,1.34799084,2744.6,2743.9,0.17991383]
[1643702740897,0.437,2744.5,2743.9,0.17991383]
[1643702741096,1.34799084,2744.4,2743.9,0.17991383]
[1643702741294,1.34799084,2744.4,2743.7,0.69030717]
[1643702741295,1.34799084,2744.4,2743.7,0.870221]
[1643702741495,1.34799084,2744.3,2743.8,0.870221]
[1643702741697,0.6991918,2744.6,2743.9,0.17991383]
[1643702741896,1.37052617,2744.5,2744.0,0.17991383]
[1643702742100,1.37052617,2744.5,2744.1,0.17991383]
[1643702742398,1.37052617,2744.5,2744.2,0.17991383]
[1643702742597,1.37052617,2744.5,2744.3,0.17991383]
[1643702742798,1.37052617,2744.5,2744.4,0.17991383]
[1643702743196,1.69064876,2744.5,2744.4,0.17991383]
[1643702743995,1.69064876,2744.5,2743.7,0.3]
[1643702744197,1.37052617,2744.4,2743.8,0.16682711]
[1643702744396,1.1361918,2744.6,2743.6,0.6]
[1643702744397,0.41579438,2743.9,2743.6,0.6]
[1643702744639,1.1361918,2744.6,2743.6,0.85710514]
[1643702744857,1.3650023,2744.5,2743.6,1.15710514]
[1643702745039,1.3650023,2744.5,2743.7,0.85710514]
[1643702745244,1.3650023,2744.5,2743.7,1.45710514]
[1643702745439,1.3650023,2744.5,2743.8,0.16679797]
[1643702746442,1.3650023,2744.5,2743.9,0.87180816]
[1643702746640,1.3650023,2744.5,2744.0,1.15710514]
[1643702746641,0.04689121,2744.5,2744.0,1.15710514]
[1643702746843,0.04689121,2744.5,2744.1,0.16679797]
[1643702747041,0.04689121,2744.5,2744.2,0.16679797]
[1643702747246,0.04689121,2744.5,2744.3,0.16679797]
[1643702747441,0.04689121,2744.5,2744.4,0.16679797]
[1643702747842,1.41763552,2744.5,2744.4,0.16679797]
[1643702748891,2.29771156,2744.5,2744.4,0.16679797]
[1643702750326,1.64059902,2745.4,2744.4,0.16679797]
[1643702750499,1.54157545,2746.2,2745.1,0.0128029]
[1643702750698,5.16820918,2746.7,2745.1,0.2238874]
[1643702750897,3.9574,2746.9,2745.1,0.2238874]
[1643702750898,1.83820918,2746.8,2745.3,0.31748083]
[1643702751098,0.32120277,2745.9,2745.3,0.18150099]
[1643702752145,0.32120277,2745.9,2745.2,1.437]
[1643702752339,0.32120277,2745.9,2745.2,0.437]
[1643702752549,0.42402459,2745.4,2745.2,0.437]
[1643702752743,0.90511325,2746.1,2745.3,1.94359171]
[1643702752943,0.90511325,2746.1,2745.3,2.24359171]
[1643702753144,0.9105361,2746.8,2745.3,3.54359171]
[1643702753345,1.54157545,2747.0,2745.3,4.45402171]
[1643702753545,1.54157545,2747.0,2745.4,0.64755996]
[1643702753845,0.40568692,2746.3,2745.6,0.44486552]
[1643702754047,0.40568692,2746.3,2745.7,2.33787405]
[1643702754244,0.40568692,2746.3,2745.7,2.63787405]
[1643702754444,0.40568692,2746.3,2745.7,0.3]
[1643702754647,0.40568692,2746.3,2745.5,2.2984375]
[1643702754849,0.40568692,2746.3,2745.5,3.2984375]
[1643702755152,0.40568692,2746.3,2745.5,2.2984375]
[1643702755350,0.9229825,2746.4,2745.5,2.2984375]
[1643702755650,0.9229825,2746.4,2745.5,3.2984375]
[1643702755881,0.9229825,2746.4,2745.5,2.2984375]
[1643702756687,0.9229825,2746.4,2745.5,0.3]
[1643702756888,1.54157545,2747.2,2745.6,23.84790093]
[1643702757092,0.007,2747.8,2745.8,0.01225923]
[1643702757290,0.007,2747.8,2745.9,0.437]
[1643702757491,0.007,2747.8,2746.0,2.0]
[1643702757717,0.34890978,2747.0,2746.1,0.437]
[1643702757897,0.34890978,2747.0,2746.1,1.13960653]
[1643702758092,0.34890978,2747.0,2746.2,0.91004]
[1643702758292,0.34890978,2747.0,2746.3,0.3]
[1643702758490,0.34890978,2747.0,2746.3,0.32127154]
[1643702759093,0.34890978,2747.0,2746.4,1.99784059]
[1643702759493,0.34890978,2747.0,2746.2,2.14783419]
[1643702759745,0.34890978,2747.0,2745.8,1.2488]
[1643702759941,0.34890978,2747.0,2745.6,2.16816023]
[1643702760141,0.34890978,2747.0,2745.6,0.27639994]
[1643702760142,0.70667207,2746.2,2745.6,0.27639994]
[1643702760348,0.70667207,2746.2,2745.3,0.25]
[1643702760544,0.70667207,2746.2,2745.1,1.16637844]
[1643702761246,0.33476532,2745.4,2745.1,1.16637844]
[1643702761444,0.33476532,2745.4,2744.8,0.18150099]
[1643702762242,0.41247239,2744.9,2744.8,0.18150099]
[1643702762453,0.41247239,2744.9,2744.6,3.91709994]
[1643702762454,2.0,2746.1,2744.7,1.82116]
[1643702762743,0.9107879,2745.9,2744.6,0.27639994]
[1643702762946,2.10698151,2745.8,2744.6,0.27639994]
[1643702763810,0.32407191,2745.0,2744.6,0.27639994]
[1643702766609,0.34774484,2745.1,2744.6,0.27639994]
[1643702767009,8.4283879,2745.9,2744.6,0.27639994]
[1643702767248,1.3477879,2745.9,2744.7,2.25454545]
[1643702767444,0.437,2745.9,2744.7,2.25454545]
[1643702767639,0.35793765,2745.6,2744.9,0.40266775]
[1643702767840,0.35793765,2745.6,2745.0,1.90915915]
[1643702768044,0.35793765,2745.6,2745.1,1.95615414]
[1643702768240,0.35793765,2745.6,2745.1,2.55615414]
[1643702769742,0.35793765,2745.6,2745.1,2.25615414]
[1643702769943,0.35793765,2745.6,2745.1,0.3]
[1643702770372,0.35793765,2745.6,2745.2,0.29218041]
[1643702770546,0.35793765,2745.6,2745.3,0.29218041]
[1643702770742,0.35793765,2745.6,2745.1,1.92561205]
[1643702770991,0.35793765,2745.6,2745.2,0.29217763]
[1643702771599,0.35793765,2745.6,2744.6,2.19243624]
[1643702771800,0.35793765,2745.6,2744.7,0.29224176]
[1643702771996,1.23134266,2745.5,2744.7,0.29224176]
[1643702772396,0.43475871,2744.8,2744.7,0.29224176]
[1643702772598,0.72061112,2745.3,2744.7,0.29224176]
[1643702772797,0.910823,2745.9,2744.7,0.29224176]
[1643702772995,1.23103873,2745.8,2744.7,2.20197958]
[1643702773200,1.23103873,2745.8,2744.8,0.29224176]
[1643702773396,1.23103873,2745.8,2744.9,0.29224176]
[1643702773598,0.43837112,2745.2,2745.0,0.29224176]
[1643702773900,0.43837112,2745.2,2745.1,0.29224176]
[1643702775938,0.43837112,2745.2,2744.6,0.27639994]
[1643702776137,0.43837112,2745.2,2744.7,0.28400888]
[1643702776938,0.85519632,2744.8,2744.7,0.28400888]
[1643702778245,2.399909,2745.5,2744.7,0.28400888]
[1643702778488,1.2402581,2745.4,2744.8,0.28400888]
[1643702778690,2.03803486,2745.3,2744.0,3.4033663]
[1643702778926,2.3773242,2745.3,2744.1,0.28241592]
[1643702779091,0.9109741,2745.2,2744.1,0.28241592]
[1643702779289,0.83953934,2744.7,2744.1,0.28241592]
[1643702779692,1.96940356,2745.1,2744.1,0.28241592]
[1643702779895,0.44394384,2744.5,2744.1,0.28241592]
[1643702780092,0.9109741,2745.2,2744.1,0.28241592]
[1643702780297,0.910874,2745.4,2744.4,0.01286056]
[1643702780494,0.910874,2745.4,2744.5,0.28241592]
[1643702780694,0.9202718,2745.1,2744.5,0.28241592]
[1643702781298,0.67234877,2744.8,2744.5,0.28241592]
[1643702781494,0.67234877,2744.8,2744.6,0.28241592]
[1643702781695,0.67234877,2744.8,2744.7,0.28241592]
[1643702782149,1.08706303,2744.8,2744.7,0.28241592]
[1643702782335,1.08706303,2744.8,2744.4,0.28241592]
[1643702782536,0.41471426,2744.8,2744.4,0.28241592]
[1643702782741,0.41471426,2744.8,2744.5,0.28241592]
[1643702782944,0.41471426,2744.8,2744.6,0.28241592]
[1643702783146,0.41471426,2744.8,2744.7,0.28241592]
[1643702783546,1.27827268,2744.8,2744.7,0.28241592]
[1643702783943,0.41471426,2744.8,2744.7,0.28241592]
[1643702786796,0.00226318,2744.8,2744.7,0.28241592]
[1643702790836,2.50372892,2744.8,2744.7,0.28241592]
[1643702791036,4.48803033,2744.8,2744.7,0.28241592]
[1643702791237,0.87627056,2744.2,2743.9,0.01271602]
[1643702791442,0.42736231,2744.1,2743.9,0.01271602]
[1643702791637,0.42736231,2744.1,2744.0,0.27801897]
[1643702792437,3.83553677,2744.7,2744.0,0.27801897]
[1643702792667,0.9110941,2744.6,2744.1,0.27801897]
[1643702792937,0.9110941,2744.6,2744.2,0.27801897]
[1643702793137,0.9110941,2744.6,2744.3,0.27801897]
[1643702793387,0.9110941,2744.6,2744.4,0.27801897]
[1643702793588,0.9110941,2744.6,2743.8,3.80344793]
[1643702793589,0.9110941,2744.6,2744.5,0.27801897]
[1643702794194,1.23785929,2744.6,2744.5,0.27801897]
[1643702801390,1.53785929,2744.6,2744.5,0.27801897]
[1643702801588,7.68785929,2744.6,2743.8,1.82228]
[1643702801794,7.68785929,2744.6,2743.9,0.27021669]
[1643702801795,1.25685438,2744.5,2743.9,0.27021669]
[1643702801987,0.9112735,2744.3,2744.0,0.27021669]
[1643702802197,0.9112735,2744.3,2743.4,0.96156525]
[1643702802198,0.9112735,2744.3,2744.1,0.27021669]
[1643702802388,0.9112735,2744.3,2744.2,0.27021669]
[1643702802588,5.33983884,2744.3,2744.2,0.27021669]
[1643702803389,0.9112735,2744.3,2744.2,0.27021669]
[1643702803691,2.1696679,2744.3,2744.2,0.27021669]
[1643702804087,2.16964929,2744.3,2744.2,0.27021669]
[1643702804319,0.9112735,2744.3,2744.2,0.27021669]
[1643702804489,2.1707486,2744.3,2744.2,0.27021669]
[1643702804738,7.11249433,2744.3,2744.2,0.27021669]
[1643702804943,5.1707486,2744.3,2744.2,0.27021669]
[1643702805141,7.11342737,2744.3,2744.2,0.27021669]
[1643702805949,3.19496664,2744.3,2744.2,0.27021669]
[1643702806146,2.87444413,2744.3,2744.2,0.27021669]
[1643702806347,0.89075099,2744.3,2744.2,0.27021669]
[1643702806745,0.57557051,2744.3,2744.2,0.27021669]
[1643702807549,0.57557051,2744.3,2744.2,0.2649373]
[1643702808540,1.85343249,2744.3,2744.2,0.2649373]
[1643702809091,0.57557051,2744.3,2744.2,0.2649373]
[1643702809292,0.57186051,2744.3,2744.2,0.2649373]
[1643702811606,0.57186051,2744.3,2743.7,1.59632531]
[1643702811607,10.25919,2744.3,2743.3,0.68871695]
[1643702811802,10.25919,2744.3,2742.8,1.37743391]
[1643702811803,6.50227436,2743.4,2742.8,0.68883081]
[1643702812000,6.50227436,2743.4,2742.5,0.68883081]
[1643702812001,1.5,2743.2,2742.5,0.68883081]
[1643702812256,1.5,2743.2,2742.2,0.88883081]
[1643702812257,0.01290461,2742.9,2742.2,0.88883081]
[1643702812454,0.91919,2743.1,2742.2,0.2]